[Event "Late-Titled-Tuesday-Blitz-June-18-2024"]
[Site "Chess.com"]
[Date "2024.06.18"]
[Round "2"]
[White "GM_dmitrij"]
[Black "soloderisas"]
[Result "0-1"]
[WhiteElo "3044"]
[BlackElo "2653"]
[TimeControl "180+1"]
[EndTime "14:19:04 PDT"]
[Termination "soloderisas won by resignation"]

1. c4 {[%clk 0:03:00.9]} 1... Nc6 {[%clk 0:02:57.5]} 2. g3 {[%clk 0:02:51.3]}
2... e5 {[%clk 0:02:57.4]} 3. Bg2 {[%clk 0:02:51.2]} 3... g6 {[%clk 0:02:58]} 4.
Nc3 {[%clk 0:02:51.1]} 4... Bg7 {[%clk 0:02:58.9]} 5. e3 {[%clk 0:02:44.5]} 5...
d6 {[%clk 0:02:59]} 6. Nge2 {[%clk 0:02:44.5]} 6... Be6 {[%clk 0:02:58.6]} 7.
Nd5 {[%clk 0:02:44.1]} 7... Qd7 {[%clk 0:02:57.6]} 8. h3 {[%clk 0:02:31.1]} 8...
Nd8 {[%clk 0:02:51.9]} 9. b3 {[%clk 0:02:29.2]} 9... c6 {[%clk 0:02:50]} 10.
Ndc3 {[%clk 0:02:28.5]} 10... Ne7 {[%clk 0:02:48.8]} 11. d4 {[%clk 0:02:25.5]}
11... d5 {[%clk 0:02:43.1]} 12. cxd5 {[%clk 0:02:19.7]} 12... Nxd5 {[%clk
0:02:42.5]} 13. Ne4 {[%clk 0:02:11.7]} 13... O-O {[%clk 0:02:27.3]} 14. Nc5
{[%clk 0:02:05.5]} 14... Qc7 {[%clk 0:02:20.4]} 15. O-O {[%clk 0:02:00.6]} 15...
b6 {[%clk 0:01:58.8]} 16. Nxe6 {[%clk 0:01:45.8]} 16... Nxe6 {[%clk 0:01:59.7]}
17. e4 {[%clk 0:01:25.9]} 17... Ne7 {[%clk 0:01:50.5]} 18. dxe5 {[%clk
0:01:25.5]} 18... Rad8 {[%clk 0:01:38]} 19. Qc2 {[%clk 0:01:23.7]} 19... Bxe5
{[%clk 0:01:31.6]} 20. Rb1 {[%clk 0:01:19.3]} 20... c5 {[%clk 0:01:30.5]} 21.
Bh6 {[%clk 0:01:10]} 21... Rfe8 {[%clk 0:01:25.2]} 22. f4 {[%clk 0:01:00.9]}
22... Bh8 {[%clk 0:01:08.8]} 23. e5 {[%clk 0:00:58.6]} 23... Nf5 {[%clk
0:01:05.8]} 24. Bg5 {[%clk 0:00:43.8]} 24... Nxg5 {[%clk 0:01:04.3]} 25. fxg5
{[%clk 0:00:44.7]} 25... Ne3 {[%clk 0:01:03.9]} 26. Qc1 {[%clk 0:00:27.9]} 26...
Nxf1 {[%clk 0:01:01.1]} 27. Bxf1 {[%clk 0:00:17.8]} 27... Qxe5 {[%clk 0:00:54]}
28. h4 {[%clk 0:00:17.8]} 28... Qe3+ {[%clk 0:00:50.9]} 29. Qxe3 {[%clk
0:00:17.7]} 29... Rxe3 {[%clk 0:00:51.8]} 30. Kf2 {[%clk 0:00:18.2]} 30... Bd4
{[%clk 0:00:47.5]} 31. Kg2 {[%clk 0:00:17.1]} 31... Kg7 {[%clk 0:00:44.1]} 32.
Nf4 {[%clk 0:00:16.4]} 32... Be5 {[%clk 0:00:39.8]} 33. Ne2 {[%clk 0:00:11.4]}
33... Rd2 {[%clk 0:00:34.5]} 34. Kf2 {[%clk 0:00:11]} 34... Bd4 {[%clk
0:00:28.9]} 35. Ke1 {[%clk 0:00:08.7]} 35... Rxa2 {[%clk 0:00:24.7]} 36. b4
{[%clk 0:00:08.5]} 36... cxb4 {[%clk 0:00:19.9]} 37. Kd1 {[%clk 0:00:04.5]}
37... Ra1 {[%clk 0:00:18.1]} 38. Rxa1 {[%clk 0:00:02.6]} 38... Bxa1 {[%clk
0:00:19]} 39. Kd2 {[%clk 0:00:03.3]} 39... Re5 {[%clk 0:00:17.4]} 0-1

[Event "Late-Titled-Tuesday-Blitz-June-18-2024"]
[Site "Chess.com"]
[Date "2024.06.18"]
[Round "2"]
[White "ACollins05"]
[Black "stollenmonster"]
[Result "0-1"]
[WhiteElo "2408"]
[BlackElo "2902"]
[TimeControl "180+1"]
[EndTime "14:19:04 PDT"]
[Termination "stollenmonster won by resignation"]

1. d4 {[%clk 0:03:00.9]} 1... Nf6 {[%clk 0:02:59.7]} 2. c4 {[%clk 0:03:00]} 2...
e6 {[%clk 0:03:00.2]} 3. Nf3 {[%clk 0:02:59.9]} 3... d5 {[%clk 0:03:01.1]} 4. g3
{[%clk 0:03:00.1]} 4... Ne4 {[%clk 0:03:01.2]} 5. Bg2 {[%clk 0:02:59.2]} 5...
Be7 {[%clk 0:03:01.7]} 6. O-O {[%clk 0:02:58.5]} 6... O-O {[%clk 0:03:02.2]} 7.
Nc3 {[%clk 0:02:58.8]} 7... f5 {[%clk 0:03:02.7]} 8. Bf4 {[%clk 0:02:57.3]} 8...
c6 {[%clk 0:03:02.8]} 9. Rc1 {[%clk 0:02:56.3]} 9... Bd7 {[%clk 0:03:01.2]} 10.
Ne5 {[%clk 0:02:54.2]} 10... Be8 {[%clk 0:03:01.1]} 11. f3 {[%clk 0:02:53.2]}
11... Nxc3 {[%clk 0:03:01]} 12. bxc3 {[%clk 0:02:51]} 12... g5 {[%clk
0:03:01.3]} 13. Be3 {[%clk 0:02:50.1]} 13... Nd7 {[%clk 0:02:58.2]} 14. f4
{[%clk 0:02:48]} 14... Nxe5 {[%clk 0:02:57.9]} 15. fxe5 {[%clk 0:02:46.3]} 15...
dxc4 {[%clk 0:02:43.6]} 16. Qa4 {[%clk 0:02:43.1]} 16... b5 {[%clk 0:02:41.2]}
17. Qa6 {[%clk 0:02:40.4]} 17... Qb6 {[%clk 0:02:37.3]} 18. Qxb6 {[%clk
0:02:35.1]} 18... axb6 {[%clk 0:02:38.2]} 19. Rc2 {[%clk 0:02:35]} 19... Ra5
{[%clk 0:02:11.1]} 20. Bd2 {[%clk 0:01:51.9]} 20... Bd7 {[%clk 0:01:53.1]} 21.
e4 {[%clk 0:01:51.9]} 21... fxe4 {[%clk 0:01:52.5]} 22. Bxe4 {[%clk 0:01:52.8]}
22... Raa8 {[%clk 0:01:40.5]} 23. Be3 {[%clk 0:01:43.9]} 23... Rxf1+ {[%clk
0:01:39.1]} 24. Kxf1 {[%clk 0:01:43.7]} 24... h6 {[%clk 0:01:32.8]} 25. Rf2
{[%clk 0:01:42.4]} 25... Ra3 {[%clk 0:01:26.7]} 26. Rc2 {[%clk 0:01:36.1]} 26...
b4 {[%clk 0:01:25.7]} 27. Bd2 {[%clk 0:01:25.5]} 27... b3 {[%clk 0:01:16.4]} 28.
axb3 {[%clk 0:01:26.4]} 28... cxb3 {[%clk 0:01:16.7]} 29. Rc1 {[%clk 0:01:24.1]}
29... c5 {[%clk 0:01:01.6]} 30. Bd3 {[%clk 0:01:20.2]} 30... b5 {[%clk
0:00:54.6]} 31. dxc5 {[%clk 0:01:19.8]} 31... Bxc5 {[%clk 0:00:54.7]} 32. Rb1
{[%clk 0:01:19.1]} 32... Ra2 {[%clk 0:00:37.7]} 33. Ke1 {[%clk 0:01:18.8]} 33...
b2 {[%clk 0:00:35]} 34. Kd1 {[%clk 0:01:18]} 34... b4 {[%clk 0:00:22.6]} 35.
cxb4 {[%clk 0:01:18.9]} 35... Ba4+ {[%clk 0:00:22.7]} 36. Ke2 {[%clk 0:01:11.1]}
36... Bd4 {[%clk 0:00:22.4]} 37. Bc4 {[%clk 0:01:00]} 37... Ra1 {[%clk 0:00:20]}
38. Bxe6+ {[%clk 0:01:00.1]} 38... Kg7 {[%clk 0:00:19.5]} 39. Bf5 {[%clk
0:01:01]} 39... Bxe5 {[%clk 0:00:18.7]} 40. Bd3 {[%clk 0:00:52.3]} 40... Bb3
{[%clk 0:00:17.6]} 41. b5 {[%clk 0:00:18.5]} 41... Ba2 {[%clk 0:00:17.7]} 42.
Rxb2 {[%clk 0:00:16]} 42... Bxb2 {[%clk 0:00:18.6]} 43. b6 {[%clk 0:00:16.5]}
43... Bd5 {[%clk 0:00:17.1]} 44. Bc4 {[%clk 0:00:13.3]} 44... Bxc4+ {[%clk
0:00:16.8]} 45. Ke3 {[%clk 0:00:13.9]} 45... Bd5 {[%clk 0:00:17.2]} 0-1

[Event "Late-Titled-Tuesday-Blitz-June-18-2024"]
[Site "Chess.com"]
[Date "2024.06.18"]
[Round "2"]
[White "SilverCityIndigo"]
[Black "NikitaShnadrygin"]
[Result "1-0"]
[WhiteElo "2409"]
[BlackElo "2720"]
[TimeControl "180+1"]
[EndTime "14:19:04 PDT"]
[Termination "SilverCityIndigo won by resignation"]

1. d4 {[%clk 0:03:00]} 1... d5 {[%clk 0:03:00.2]} 2. Nf3 {[%clk 0:03:00.1]} 2...
Nc6 {[%clk 0:03:01.1]} 3. Bg5 {[%clk 0:02:59.1]} 3... Bg4 {[%clk 0:03:01.7]} 4.
e3 {[%clk 0:02:57.6]} 4... f6 {[%clk 0:03:02]} 5. Bh4 {[%clk 0:02:57.6]} 5... e6
{[%clk 0:03:02.6]} 6. Be2 {[%clk 0:02:57.4]} 6... Bd6 {[%clk 0:03:03.2]} 7. Bg3
{[%clk 0:02:57]} 7... Nge7 {[%clk 0:03:03.5]} 8. Nbd2 {[%clk 0:02:57]} 8... O-O
{[%clk 0:03:03.1]} 9. c4 {[%clk 0:02:57.3]} 9... dxc4 {[%clk 0:03:00]} 10. Bxc4
{[%clk 0:02:55.1]} 10... Kh8 {[%clk 0:02:59]} 11. h3 {[%clk 0:02:43.3]} 11...
Bxf3 {[%clk 0:02:58.7]} 12. Qxf3 {[%clk 0:02:30.8]} 12... e5 {[%clk 0:02:58.7]}
13. d5 {[%clk 0:02:02.4]} 13... Nb8 {[%clk 0:02:58.8]} 14. O-O-O {[%clk
0:01:47.3]} 14... Nd7 {[%clk 0:02:56.8]} 15. Kb1 {[%clk 0:01:46.8]} 15... f5
{[%clk 0:02:56.8]} 16. Bh4 {[%clk 0:01:34]} 16... Nf6 {[%clk 0:02:53.7]} 17.
Bxf6 {[%clk 0:01:11.6]} 17... Rxf6 {[%clk 0:02:53.5]} 18. g4 {[%clk 0:01:11.4]}
18... Qd7 {[%clk 0:02:48]} 19. g5 {[%clk 0:01:06.5]} 19... Rff8 {[%clk
0:02:47.6]} 20. h4 {[%clk 0:01:00.6]} 20... e4 {[%clk 0:02:48]} 21. Qh3 {[%clk
0:00:59.7]} 21... Rad8 {[%clk 0:02:38.1]} 22. Bb3 {[%clk 0:00:56.9]} 22... b5
{[%clk 0:02:37.9]} 23. h5 {[%clk 0:00:52.2]} 23... a5 {[%clk 0:02:37.4]} 24. a3
{[%clk 0:00:32.1]} 24... a4 {[%clk 0:02:37.5]} 25. Ba2 {[%clk 0:00:31.6]} 25...
Qe8 {[%clk 0:02:34.9]} 26. h6 {[%clk 0:00:27.8]} 26... g6 {[%clk 0:02:35]} 27.
f4 {[%clk 0:00:25.2]} 27... Rb8 {[%clk 0:02:34.4]} 28. Ka1 {[%clk 0:00:25]}
28... b4 {[%clk 0:02:34.4]} 29. Nc4 {[%clk 0:00:23.4]} 29... bxa3 {[%clk
0:02:32.8]} 30. bxa3 {[%clk 0:00:22.4]} 30... Qb5 {[%clk 0:02:31.2]} 31. Rb1
{[%clk 0:00:21.1]} 31... Qc5 {[%clk 0:02:27.9]} 32. Qg2 {[%clk 0:00:20.8]} 32...
Rxb1+ {[%clk 0:01:59.2]} 33. Rxb1 {[%clk 0:00:20.3]} 33... Kg8 {[%clk
0:01:59.3]} 34. Qd2 {[%clk 0:00:19.8]} 34... Kf7 {[%clk 0:01:40]} 35. Qc3 {[%clk
0:00:14.2]} 35... Nc8 {[%clk 0:01:34.5]} 36. Qg7+ {[%clk 0:00:10]} 36... Ke8
{[%clk 0:01:35]} 37. Rb8 {[%clk 0:00:09.1]} 37... Kd8 {[%clk 0:01:32.6]} 38.
Qxh7 {[%clk 0:00:06.1]} 38... Qa7 {[%clk 0:01:26]} 39. Rxc8+ {[%clk 0:00:05.9]}
39... Kxc8 {[%clk 0:01:26.9]} 40. Qg7 {[%clk 0:00:06.2]} 40... Qc5 {[%clk
0:00:59.8]} 41. h7 {[%clk 0:00:06.5]} 41... Kb7 {[%clk 0:00:47.8]} 42. h8=Q
{[%clk 0:00:06]} 42... Rxh8 {[%clk 0:00:47.9]} 43. Qxh8 {[%clk 0:00:06.9]} 43...
Qxd5 {[%clk 0:00:39.5]} 44. Qc3 {[%clk 0:00:07.3]} 44... Qd1+ {[%clk 0:00:38.2]}
45. Kb2 {[%clk 0:00:06.8]} 45... Qe2+ {[%clk 0:00:37]} 46. Qc2 {[%clk
0:00:07.4]} 46... Qf1 {[%clk 0:00:29.5]} 47. Nxd6+ {[%clk 0:00:07.3]} 47... cxd6
{[%clk 0:00:30.4]} 48. Bd5+ {[%clk 0:00:07.7]} 48... Ka7 {[%clk 0:00:30.5]} 49.
Qc7+ {[%clk 0:00:07.9]} 49... Ka6 {[%clk 0:00:31.4]} 50. Bc4+ {[%clk 0:00:08]}
1-0

[Event "Late-Titled-Tuesday-Blitz-June-18-2024"]
[Site "Chess.com"]
[Date "2024.06.18"]
[Round "2"]
[White "aexmi"]
[Black "vesalhamedinia"]
[Result "1-0"]
[WhiteElo "2290"]
[BlackElo "2489"]
[TimeControl "180+1"]
[EndTime "14:19:05 PDT"]
[Termination "aexmi won by resignation"]

1. d4 {[%clk 0:03:00.9]} 1... d5 {[%clk 0:02:58.2]} 2. Bf4 {[%clk 0:03:00.5]}
2... Nf6 {[%clk 0:02:57.1]} 3. e3 {[%clk 0:03:00.4]} 3... Bf5 {[%clk 0:02:56.6]}
4. c4 {[%clk 0:03:00.2]} 4... e6 {[%clk 0:02:55.3]} 5. Nc3 {[%clk 0:03:00.2]}
5... c6 {[%clk 0:02:55.7]} 6. Qb3 {[%clk 0:03:00]} 6... Qc8 {[%clk 0:02:52.1]}
7. Rc1 {[%clk 0:02:58.5]} 7... Nbd7 {[%clk 0:02:49.9]} 8. Nf3 {[%clk 0:02:47.6]}
8... Be7 {[%clk 0:02:47.6]} 9. Be2 {[%clk 0:02:46.9]} 9... O-O {[%clk
0:02:46.5]} 10. O-O {[%clk 0:02:47.3]} 10... h6 {[%clk 0:02:46.8]} 11. h3 {[%clk
0:02:42.1]} 11... a5 {[%clk 0:02:38.2]} 12. Ne5 {[%clk 0:02:09.6]} 12... Nxe5
{[%clk 0:02:36.1]} 13. dxe5 {[%clk 0:02:05.7]} 13... Ne4 {[%clk 0:02:29.8]} 14.
cxd5 {[%clk 0:01:55.4]} 14... Nd2 {[%clk 0:02:03.9]} 15. Qd1 {[%clk 0:01:15.6]}
15... Nxf1 {[%clk 0:01:58.7]} 16. d6 {[%clk 0:01:14.1]} 16... Nxe3 {[%clk
0:01:53.2]} 17. Bxe3 {[%clk 0:01:10.4]} 17... Bd8 {[%clk 0:01:51.8]} 18. Na4
{[%clk 0:01:04]} 18... f6 {[%clk 0:01:48.2]} 19. f4 {[%clk 0:01:00.5]} 19...
fxe5 {[%clk 0:01:36.7]} 20. fxe5 {[%clk 0:00:57.6]} 20... Qd7 {[%clk 0:01:34.3]}
21. g4 {[%clk 0:00:39]} 21... Bg6 {[%clk 0:01:26.6]} 22. Nc5 {[%clk 0:00:38.1]}
22... Qf7 {[%clk 0:01:17.9]} 23. Bc4 {[%clk 0:00:36.8]} 23... Qf3 {[%clk
0:00:49.9]} 24. Bxe6+ {[%clk 0:00:31.1]} 24... Kh7 {[%clk 0:00:48.3]} 25. Qxf3
{[%clk 0:00:25.1]} 25... Rxf3 {[%clk 0:00:49.2]} 26. Bf2 {[%clk 0:00:19.5]}
26... Bg5 {[%clk 0:00:45.2]} 27. Rd1 {[%clk 0:00:16.6]} 27... Bf4 {[%clk
0:00:41.5]} 28. Kg2 {[%clk 0:00:14.7]} 28... Rxf2+ {[%clk 0:00:34.2]} 29. Kxf2
{[%clk 0:00:14.6]} 29... Bxe5 {[%clk 0:00:35.1]} 30. d7 {[%clk 0:00:14]} 30...
Bf6 {[%clk 0:00:33.2]} 31. Nxb7 {[%clk 0:00:13.4]} 31... Bd8 {[%clk 0:00:21.8]}
32. Nxd8 {[%clk 0:00:13.3]} 32... Rxd8 {[%clk 0:00:21.4]} 33. Rd6 {[%clk
0:00:13.7]} 33... c5 {[%clk 0:00:21.6]} 34. Rc6 {[%clk 0:00:13.6]} 34... Bb1
{[%clk 0:00:17.6]} 35. Rc8 {[%clk 0:00:13.3]} 35... Rxd7 {[%clk 0:00:17.9]} 36.
Bxd7 {[%clk 0:00:13.2]} 36... Kg6 {[%clk 0:00:18.5]} 37. Bf5+ {[%clk 0:00:13.1]}
37... Bxf5 {[%clk 0:00:18.1]} 38. gxf5+ {[%clk 0:00:14]} 38... Kxf5 {[%clk
0:00:19]} 39. Rxc5+ {[%clk 0:00:14.5]} 39... Ke4 {[%clk 0:00:19.6]} 40. Rxa5
{[%clk 0:00:15.4]} 40... g5 {[%clk 0:00:20.4]} 41. Kg3 {[%clk 0:00:15.1]} 41...
Ke3 {[%clk 0:00:20.6]} 42. b4 {[%clk 0:00:14.7]} 42... Kd4 {[%clk 0:00:20.7]}
43. b5 {[%clk 0:00:15]} 43... Kc5 {[%clk 0:00:21.1]} 44. a4 {[%clk 0:00:15.4]}
44... h5 {[%clk 0:00:21.1]} 45. Ra6 {[%clk 0:00:15.4]} 45... h4+ {[%clk
0:00:22]} 46. Kg4 {[%clk 0:00:15.2]} 46... Kd4 {[%clk 0:00:20.5]} 47. Kxg5
{[%clk 0:00:16.1]} 47... Ke4 {[%clk 0:00:21.4]} 48. Kxh4 {[%clk 0:00:16.5]}
48... Kf3 {[%clk 0:00:22.3]} 49. Rc6 {[%clk 0:00:16.3]} 49... Kg2 {[%clk
0:00:23.2]} 50. b6 {[%clk 0:00:17]} 1-0

[Event "Late-Titled-Tuesday-Blitz-June-18-2024"]
[Site "Chess.com"]
[Date "2024.06.18"]
[Round "2"]
[White "Chaubunagungamaug1"]
[Black "Alina_Gumerovna"]
[Result "0-1"]
[WhiteElo "2464"]
[BlackElo "2204"]
[TimeControl "180+1"]
[EndTime "14:19:05 PDT"]
[Termination "Alina_Gumerovna won by resignation"]

1. e4 {[%clk 0:03:00.9]} 1... e5 {[%clk 0:03:00]} 2. Nf3 {[%clk 0:02:59.8]} 2...
Nf6 {[%clk 0:03:00.7]} 3. Nxe5 {[%clk 0:02:56.4]} 3... Nxe4 {[%clk 0:03:00.9]}
4. Qe2 {[%clk 0:02:55.4]} 4... Qe7 {[%clk 0:03:01.1]} 5. Qxe4 {[%clk 0:02:55.3]}
5... d6 {[%clk 0:03:01.5]} 6. d4 {[%clk 0:02:52.8]} 6... dxe5 {[%clk 0:03:02]}
7. dxe5 {[%clk 0:02:52.8]} 7... Nc6 {[%clk 0:03:01.6]} 8. Bb5 {[%clk 0:02:45.5]}
8... Bd7 {[%clk 0:03:02]} 9. O-O {[%clk 0:02:41.4]} 9... O-O-O {[%clk 0:02:49]}
10. Re1 {[%clk 0:02:33.9]} 10... Nxe5 {[%clk 0:02:43.7]} 11. Ba6 {[%clk
0:01:49.4]} 11... Bc6 {[%clk 0:02:20.3]} 12. Qf5+ {[%clk 0:01:37.8]} 12... Kb8
{[%clk 0:02:20.1]} 13. Rxe5 {[%clk 0:01:32.5]} 13... bxa6 {[%clk 0:02:03]} 14.
Nc3 {[%clk 0:01:32.6]} 14... Qb4 {[%clk 0:01:36.3]} 15. Be3 {[%clk 0:01:06.1]}
15... Bd6 {[%clk 0:01:31.9]} 16. Ra5 {[%clk 0:00:47.2]} 16... g6 {[%clk
0:01:30.6]} 17. a3 {[%clk 0:00:39]} 17... Qh4 {[%clk 0:00:28.7]} 18. Qh3 {[%clk
0:00:27.5]} 18... Qxh3 {[%clk 0:00:20.7]} 19. gxh3 {[%clk 0:00:28.4]} 19... Bb7
{[%clk 0:00:19.1]} 20. b4 {[%clk 0:00:25.1]} 20... f6 {[%clk 0:00:06]} 21. b5
{[%clk 0:00:24.5]} 21... Be5 {[%clk 0:00:05.5]} 22. bxa6 {[%clk 0:00:24.7]}
22... Bxc3 {[%clk 0:00:05.3]} 23. Rb1 {[%clk 0:00:25.1]} 23... Bxa5 {[%clk
0:00:02.5]} 24. Rxb7+ {[%clk 0:00:24]} 24... Kc8 {[%clk 0:00:02.7]} 25. Rxa7
{[%clk 0:00:22]} 25... Kd7 {[%clk 0:00:01.7]} 26. Rb7 {[%clk 0:00:21.3]} 26...
Ra8 {[%clk 0:00:01.8]} 27. a7 {[%clk 0:00:20.3]} 27... Rhc8 {[%clk 0:00:01.4]}
28. Rb5 {[%clk 0:00:20.1]} 28... Bb6 {[%clk 0:00:01.8]} 29. Bxb6 {[%clk
0:00:19.4]} 29... cxb6 {[%clk 0:00:02.7]} 30. Rxb6 {[%clk 0:00:19.2]} 30... Rxa7
{[%clk 0:00:03.5]} 31. Rb3 {[%clk 0:00:18.9]} 31... Ke7 {[%clk 0:00:03.5]} 32.
c3 {[%clk 0:00:18.1]} 32... Rcc7 {[%clk 0:00:03.4]} 33. Kg2 {[%clk 0:00:18.1]}
33... Rab7 {[%clk 0:00:04]} 34. Rxb7 {[%clk 0:00:17.3]} 34... Rxb7 {[%clk
0:00:04.9]} 35. Kf3 {[%clk 0:00:16.8]} 35... Rc7 {[%clk 0:00:05.8]} 36. a4
{[%clk 0:00:16.1]} 36... Rxc3+ {[%clk 0:00:06.2]} 37. Kg2 {[%clk 0:00:16.3]}
37... Ra3 {[%clk 0:00:07.1]} 38. h4 {[%clk 0:00:15]} 38... Rxa4 {[%clk
0:00:07.6]} 39. Kg3 {[%clk 0:00:15.3]} 39... h5 {[%clk 0:00:07.7]} 40. h3 {[%clk
0:00:14.7]} 40... Ke6 {[%clk 0:00:08.6]} 41. f3 {[%clk 0:00:14.9]} 41... Kf5
{[%clk 0:00:09.5]} 0-1

[Event "Late-Titled-Tuesday-Blitz-June-18-2024"]
[Site "Chess.com"]
[Date "2024.06.18"]
[Round "2"]
[White "egnfanclub"]
[Black "Winner_7777"]
[Result "0-1"]
[WhiteElo "2352"]
[BlackElo "2566"]
[TimeControl "180+1"]
[EndTime "14:19:13 PDT"]
[Termination "Winner_7777 won by resignation"]

1. e4 {[%clk 0:03:00.9]} 1... c5 {[%clk 0:02:57.8]} 2. Nc3 {[%clk 0:03:00.5]}
2... d6 {[%clk 0:02:58]} 3. f4 {[%clk 0:03:01.1]} 3... Nc6 {[%clk 0:02:57.1]} 4.
Nf3 {[%clk 0:03:01.6]} 4... Nf6 {[%clk 0:02:55.9]} 5. Bc4 {[%clk 0:03:02]} 5...
e6 {[%clk 0:02:48.8]} 6. d3 {[%clk 0:03:02.1]} 6... a6 {[%clk 0:02:48.9]} 7. O-O
{[%clk 0:03:01.6]} 7... Be7 {[%clk 0:02:35.4]} 8. a4 {[%clk 0:02:56]} 8... O-O
{[%clk 0:02:34]} 9. Ba2 {[%clk 0:02:48.5]} 9... d5 {[%clk 0:02:21.3]} 10. e5
{[%clk 0:02:46.4]} 10... Nd7 {[%clk 0:02:18.1]} 11. Qe2 {[%clk 0:02:37.5]} 11...
b5 {[%clk 0:02:02.2]} 12. axb5 {[%clk 0:02:36]} 12... axb5 {[%clk 0:02:03.1]}
13. Nxb5 {[%clk 0:02:30.7]} 13... Nb4 {[%clk 0:02:02.6]} 14. Na3 {[%clk
0:02:26.3]} 14... Bb7 {[%clk 0:01:33.4]} 15. Bd2 {[%clk 0:02:16.9]} 15... Qb6
{[%clk 0:00:55.8]} 16. Kh1 {[%clk 0:02:05.3]} 16... Nxa2 {[%clk 0:00:33.9]} 17.
Rxa2 {[%clk 0:02:05]} 17... Bc6 {[%clk 0:00:27.3]} 18. Rfa1 {[%clk 0:01:34.9]}
18... Qb7 {[%clk 0:00:24.9]} 19. d4 {[%clk 0:01:28.2]} 19... c4 {[%clk
0:00:24.5]} 20. Bc3 {[%clk 0:01:24.5]} 20... Nb6 {[%clk 0:00:24.1]} 21. Qd2
{[%clk 0:01:14.9]} 21... Na4 {[%clk 0:00:23.4]} 22. Nb1 {[%clk 0:01:07.3]} 22...
h6 {[%clk 0:00:12.7]} 23. g4 {[%clk 0:01:03]} 23... Nxc3 {[%clk 0:00:12.7]} 24.
Nxc3 {[%clk 0:01:02.5]} 24... Bb4 {[%clk 0:00:12.9]} 25. f5 {[%clk 0:01:02.2]}
25... Rxa2 {[%clk 0:00:12.7]} 26. Rxa2 {[%clk 0:01:02.1]} 26... Ra8 {[%clk
0:00:13.6]} 27. Rxa8+ {[%clk 0:01:02]} 27... Qxa8 {[%clk 0:00:14.5]} 28. f6
{[%clk 0:01:02.2]} 28... Qa1+ {[%clk 0:00:14.9]} 29. Kg2 {[%clk 0:01:02]} 29...
Qxb2 {[%clk 0:00:15.2]} 30. fxg7 {[%clk 0:01:02.2]} 30... Kxg7 {[%clk
0:00:06.5]} 31. Nd1 {[%clk 0:00:59.2]} 31... Qb1 {[%clk 0:00:05.1]} 32. Qe2
{[%clk 0:00:57.2]} 32... Ba4 {[%clk 0:00:04.4]} 33. Ne3 {[%clk 0:00:56.6]} 33...
Qc1 {[%clk 0:00:03.2]} 34. h4 {[%clk 0:00:54.6]} 34... Bc3 {[%clk 0:00:03.2]}
35. g5 {[%clk 0:00:53.8]} 35... hxg5 {[%clk 0:00:03.3]} 36. hxg5 {[%clk
0:00:54.7]} 36... Qb1 {[%clk 0:00:03.4]} 37. g6 {[%clk 0:00:53.5]} 37... fxg6
{[%clk 0:00:03.4]} 38. Ng5 {[%clk 0:00:52.5]} 38... Bd7 {[%clk 0:00:03.9]} 39.
Qf2 {[%clk 0:00:49.8]} 39... Bxd4 {[%clk 0:00:04]} 40. Qf7+ {[%clk 0:00:49.6]}
40... Kh6 {[%clk 0:00:04.5]} 41. Qf4 {[%clk 0:00:42]} 41... Bxe3 {[%clk
0:00:04.4]} 42. Qxe3 {[%clk 0:00:40.7]} 42... Qxc2+ {[%clk 0:00:04.9]} 43. Kf3
{[%clk 0:00:37.2]} 43... Qb3 {[%clk 0:00:05.2]} 44. Nxe6+ {[%clk 0:00:36.7]}
44... Qxe3+ {[%clk 0:00:05.4]} 45. Kxe3 {[%clk 0:00:36]} 45... Bxe6 {[%clk
0:00:06.3]} 46. Kd4 {[%clk 0:00:36.5]} 46... g5 {[%clk 0:00:07.2]} 47. Ke3
{[%clk 0:00:35.5]} 47... g4 {[%clk 0:00:08.1]} 48. Kf4 {[%clk 0:00:36]} 48...
Kg6 {[%clk 0:00:08.7]} 49. Kg3 {[%clk 0:00:34.5]} 49... Kf5 {[%clk 0:00:09.6]}
0-1

[Event "Late-Titled-Tuesday-Blitz-June-18-2024"]
[Site "Chess.com"]
[Date "2024.06.18"]
[Round "2"]
[White "Sanan_Sjugirov"]
[Black "LaStreetCmaMaison"]
[Result "1-0"]
[WhiteElo "2965"]
[BlackElo "2614"]
[TimeControl "180+1"]
[EndTime "14:19:14 PDT"]
[Termination "Sanan_Sjugirov won on time"]

1. d4 {[%clk 0:03:00.9]} 1... d5 {[%clk 0:02:59.2]} 2. c4 {[%clk 0:03:00.7]}
2... e5 {[%clk 0:02:59.9]} 3. dxe5 {[%clk 0:02:59.4]} 3... Ne7 {[%clk
0:02:58.8]} 4. Nf3 {[%clk 0:02:51.8]} 4... Nbc6 {[%clk 0:02:58]} 5. a3 {[%clk
0:02:31.5]} 5... Bg4 {[%clk 0:02:12.5]} 6. Nbd2 {[%clk 0:02:27.7]} 6... dxc4
{[%clk 0:02:10.5]} 7. Qa4 {[%clk 0:02:17.9]} 7... Ng6 {[%clk 0:01:45.7]} 8. e3
{[%clk 0:02:17.6]} 8... a6 {[%clk 0:01:41]} 9. Qxc4 {[%clk 0:01:58.3]} 9...
Ngxe5 {[%clk 0:01:41.3]} 10. Nxe5 {[%clk 0:01:56.5]} 10... Nxe5 {[%clk
0:01:42.2]} 11. Qe4 {[%clk 0:01:54.4]} 11... Bd6 {[%clk 0:01:33.2]} 12. f4
{[%clk 0:01:19.5]} 12... f5 {[%clk 0:01:18.2]} 13. Qxb7 {[%clk 0:01:16.4]} 13...
Nd7 {[%clk 0:01:18.9]} 14. Bc4 {[%clk 0:01:06.9]} 14... Rb8 {[%clk 0:00:59.4]}
15. Qd5 {[%clk 0:01:02.7]} 15... Qh4+ {[%clk 0:01:00]} 16. g3 {[%clk 0:01:01.9]}
16... Qe7 {[%clk 0:01:00.7]} 17. O-O {[%clk 0:00:49.1]} 17... Qxe3+ {[%clk
0:00:49.7]} 18. Kh1 {[%clk 0:00:48.1]} 18... Kd8 {[%clk 0:00:49.9]} 19. Nf3
{[%clk 0:00:34.4]} 19... Qe7 {[%clk 0:00:28.9]} 20. Nd4 {[%clk 0:00:21.8]} 20...
Rb6 {[%clk 0:00:21.7]} 21. Ne6+ {[%clk 0:00:19.8]} 21... Kc8 {[%clk 0:00:19.1]}
22. Be3 {[%clk 0:00:17.2]} 22... Nf6 {[%clk 0:00:13.5]} 23. Qg2 {[%clk
0:00:12.4]} 23... Rb8 {[%clk 0:00:14.1]} 24. Rfe1 {[%clk 0:00:06.9]} 24... Ne4
{[%clk 0:00:11.3]} 25. Bd5 {[%clk 0:00:06]} 25... Re8 {[%clk 0:00:09.1]} 26. Bd4
{[%clk 0:00:06.1]} 26... Qd7 {[%clk 0:00:06.9]} 27. Ng5 {[%clk 0:00:05.5]} 27...
Nxg5 {[%clk 0:00:03.2]} 28. fxg5 {[%clk 0:00:05.9]} 28... Re7 {[%clk 0:00:01.7]}
29. Bc6 {[%clk 0:00:05.2]} 29... Qd8 {[%clk 0:00:02.3]} 30. Bf2 {[%clk
0:00:04.5]} 30... Be5 {[%clk 0:00:01.9]} 31. Bf3 {[%clk 0:00:02.9]} 31... Rxb2
{[%clk 0:00:01.7]} 32. Rad1 {[%clk 0:00:03.1]} 32... Qe8 {[%clk 0:00:01.8]} 33.
Bxg4 {[%clk 0:00:03.5]} 33... fxg4 {[%clk 0:00:02.7]} 34. Qa8+ {[%clk
0:00:04.1]} 34... Rb8 {[%clk 0:00:01.9]} 35. Qxa6+ {[%clk 0:00:05]} 35... Rb7
{[%clk 0:00:02.8]} 36. Rb1 {[%clk 0:00:04.7]} 36... c5 {[%clk 0:00:02.1]} 37.
Rxe5 {[%clk 0:00:03.6]} 37... Rxe5 {[%clk 0:00:01.4]} 38. Qxb7+ {[%clk
0:00:03.7]} 38... Kd8 {[%clk 0:00:01.8]} 39. Rd1+ {[%clk 0:00:04.4]} 1-0